Cogmind - Beta 15 @@@ ROGUE MODE // 2025.06.16 @ 01:27:47 Player: nado Result: Destroyed by Lightning with EMDS Performance ------------- Evolutions (4) 2000 Regions Visited (15) 3000 Robots Destroyed (247) 1235 Value Destroyed (8868) 8868 Prototype IDs (18) 360 Alien Tech Used (0) 0 Bonus (-650) -650 TOTAL SCORE: 14813 Bonus ------- High Alert Combat Kills 104 Follower Combat Kills 1471 Network Hubs Disabled 200 Met Data Miner 300 Built Enhanced Grunts 300 Met R17 at Cetus 500 Friendly Fire -3525 Cogmind --------- Core Integrity 0/850 Matter 285/300 Energy 600/600 System Corruption 68% Temperature Warm (186) Movement Treading (232) Ox1 Location -6/Hub_04(d) Parts ------- > --- POWER (2) -------- Quantum Reactor Quantum Reactor > --- PROPULSION (3) --- Advanced Treads Centrium Heavy Treads > --- UTILITY (7) ------ Advanced Heat Sink Advanced Heat Sink Huge Storage Unit Armor Integrity Analyzer Centrium Medium Armor Plating Centrium Medium Armor Plating Centrium Medium Armor Plating > --- WEAPON (3) ------- Advanced Variable Charge Gun Advanced Variable Charge Gun Advanced KE Penetrator (fused) > --- INVENTORY (25) --- Hybrid Deuterium Engine Quantum Reactor Quantum Reactor Quantum Reactor Centrium Heavy Treads Centrium Heavy Treads Advanced Heat Sink Advanced Heat Sink High-capacity Storage Unit Improved Sensor Array Improved Signal Interpreter Centrium Medium Armor Plating Pulse Rifle Thermic Laser Improved EM Pulse Cannon Heavy Plasma Cannon Advanced KE Penetrator Advanced KE Penetrator Rocket Launcher Heavy Rocket Launcher Power Maul Peak State ------------ > --- POWER ------------ Quantum Reactor Quantum Reactor > --- PROPULSION ------- Advanced Treads Centrium Heavy Treads > --- UTILITY ---------- Advanced Heat Sink Advanced Heat Sink Huge Storage Unit Armor Integrity Analyzer Centrium Medium Armor Plating Centrium Medium Armor Plating Centrium Medium Armor Plating > --- WEAPON ----------- Advanced Variable Charge Gun Advanced Variable Charge Gun Advanced KE Penetrator > --- INVENTORY -------- Hybrid Deuterium Engine Quantum Reactor Quantum Reactor Quantum Reactor Centrium Heavy Treads Centrium Heavy Treads Advanced Heat Sink Advanced Heat Sink High-capacity Storage Unit Improved Sensor Array Improved Signal Interpreter Centrium Medium Armor Plating Pulse Rifle Thermic Laser Improved EM Pulse Cannon Heavy Plasma Cannon Advanced KE Penetrator Advanced KE Penetrator Rocket Launcher Heavy Rocket Launcher Power Maul [Rating: 118] Favorites ----------- Power Cooled Ion Engine Engine Cooled Ion Engine Power Core Fission Core Reactor Quantum Reactor Propulsion Light Treads Treads Light Treads Leg Aluminum Leg Wheel Armored Huge Wheel Utility Huge Storage Unit Device Improved Heat Sink Storage Huge Storage Unit Processor Improved Signal Interpreter Protection Improved Light Armor Plating Weapon Heavy Assault Rifle Energy Gun Beam Rifle Energy Cannon Advanced Beam Cannon Ballistic Gun Heavy Assault Rifle Ballistic Cannon Gauss Cannon Launcher Heavy Rocket Launcher Special Weapon Plasma Cutter Build | -11 -10 -10 -9 -9 -8 -7 -7 -7 -7 -6 -6 -6 -6 -6 -6 ------- Run | Yrd Mat Min Mat Min Mat Fac Low Low Dat Pro Fac Ext Cet Arc Hub Slots Evolved 8 | . . . 2 . 2 2 . . . . 2 . . . . Power 1 | . . . . . . . . . . . 1 . . . . Propulsion 1 | . . . . . 1 . . . . . . . . . . Utility 5 | . . . 1 . 1 2 . . . . 1 . . . . Weapon 1 | . . . 1 . . . . . . . . . . . . Parts Attached 170 | . 12 5 30 . 20 26 1 1 . 7 24 33 10 . 1 Power 17 | . 2 1 1 . 1 1 . . . . 7 2 2 . . Engine 7 | . 2 . 1 . 1 1 . . . . 2 . . . . Core 8 | . . 1 . . . . . . . . 5 2 . . . Reactor 2 | . . . . . . . . . . . . . 2 . . Propulsion 39 | . 2 2 8 . 6 5 1 . . 2 3 9 1 . . Treads 33 | . 2 2 7 . 5 4 1 . . 1 2 8 1 . . Leg 1 | . . . . . 1 . . . . . . . . . . Wheel 5 | . . . 1 . . 1 . . . 1 1 1 . . . Hover . | . . . . . . . . . . . . . . . . Flight . | . . . . . . . . . . . . . . . . Utility 58 | . 3 1 11 . 7 12 . 1 . 1 9 8 5 . . Device 28 | . 1 1 4 . 3 7 . 1 . . 6 3 2 . . Storage 3 | . 1 . 2 . . . . . . . . . . . . Processor 4 | . . . . . . 2 . . . 1 . 1 . . . Hackware . | . . . . . . . . . . . . . . . . Protection 23 | . 1 . 5 . 4 3 . . . . 3 4 3 . . Artifact . | . . . . . . . . . . . . . . . . Weapon 56 | . 5 1 10 . 6 8 . . . 4 5 14 2 . 1 Energy Gun 23 | . 3 . 2 . 3 6 . . . . 2 5 1 . 1 Energy Cannon 7 | . 1 . 2 . . . . . . 1 2 1 . . . Ballistic Gun 15 | . 1 . 5 . 1 . . . . 1 . 6 1 . . Ballistic Cannon 5 | . . . . . 1 2 . . . 1 1 . . . . Launcher 5 | . . . 1 . 1 . . . . 1 . 2 . . . Special Weapon 1 | . . 1 . . . . . . . . . . . . . Impact Weapon . | . . . . . . . . . . . . . . . . Slashing Weapon . | . . . . . . . . . . . . . . . . Piercing Weapon . | . . . . . . . . . . . . . . . . Special Melee Weapon . | . . . . . . . . . . . . . . . . Unidentified Prototypes 8 | . . . 3 . . 1 . . . . . . 4 . . Corrupted Parts 7 | . . . . . . . . . . . . 1 5 . 1 System Corruption 45 | . . . . . . . . . . . . 10 26 . 9 Parts Lost 79 | . 3 6 5 . 7 8 . . . 7 12 29 . . 2 Power 9 | . 1 1 . . 1 . . . . . 4 2 . . . Propulsion 19 | . . 3 1 . 1 2 . . . 1 2 8 . . 1 Utility 31 | . 1 1 2 . 5 5 . . . 3 4 10 . . . Weapon 20 | . 1 1 2 . . 1 . . . 3 2 9 . . 1 Highest Loss Streak 8 | . 1 4 2 . 3 2 . . . 4 4 8 . . 2 To Critical Strikes 1 | . . . . . . 1 . . . . . . . . . Average Backups 21 | . 8 9 22 25 24 24 25 25 25 23 23 21 22 23 22 Power 3 | . . . 2 1 . 2 3 3 3 3 3 5 5 4 4 Propulsion 8 | . 4 4 8 12 11 10 11 11 11 9 8 4 1 3 2 Utility 3 | . . 1 3 5 4 2 2 2 2 1 3 4 5 6 6 Weapon 7 | . 2 3 6 6 6 8 9 9 9 8 8 7 10 10 9 Tool/Special . | . . . . . . . . . . . . . . . . Unused Backups 41 | . 3 . 14 . . 5 . . . . 2 . 3 . 14 Power 10 | . . . 3 . . 1 . . . . . . 2 . 4 Propulsion 10 | . . . 8 . . . . . . . . . . . 2 Utility 8 | . . . 2 . . . . . . . . . 1 . 5 Weapon 12 | . 3 . 1 . . 3 . . . . 2 . . . 3 Tool/Special 1 | . . . . . . 1 . . . . . . . . . Average Slot Usage (%) 91 | . 94 80 97 100 95 94 92 92 92 83 95 78 88 93 92 Engine 7 | . 13 8 8 11 9 6 7 7 7 7 5 6 1 . . Core 1 | . . 1 2 . . . . . . . 4 4 . . . Treads 16 | . 12 22 20 22 24 15 7 7 7 11 12 17 13 13 12 Leg 1 | . 13 . . . . . . . . . . . . . . Wheel 2 | . . . . . . 3 7 7 7 6 5 . . . . Device 15 | . 6 4 9 11 16 21 23 26 23 18 21 13 11 13 13 Storage 8 | . 14 14 11 11 9 7 7 7 7 7 6 6 6 6 6 Processor 2 | . . . . . . 4 7 7 7 3 6 . 6 6 6 Protection 9 | . 4 . 10 11 8 10 7 3 7 7 8 9 17 20 20 Energy Gun 8 | . 10 . 4 11 13 16 15 15 15 8 3 . 14 13 13 Energy Cannon 4 | . 8 9 9 11 4 . . . . 1 5 6 . . . Ballistic Gun 6 | . 9 14 16 11 6 . . . . . 2 8 5 6 6 Ballistic Cannon 2 | . . . . . 2 5 7 7 7 6 6 1 . . . Peak Build Rating 118 | . 10 12 22 22 36 53 54 54 54 54 61 61 115 115 118 Average Rating 40 | . 7 7 19 22 30 47 52 53 54 44 54 46 98 115 115 On Entrance 43 | 6 6 8 12 22 22 35 52 54 54 54 41 61 40 115 115 Naked Turns . | . . . . . . . . . . . . . . . . Heaviest Build 158 | 12 50 50 107 107 108 119 117 117 117 117 134 132 158 158 158 Greatest Support 102 | 20 40 40 40 40 68 72 28 28 28 28 30 72 102 102 102 Greatest Overweight (x) 11 | . 3 2 5 2 2 5 5 4 4 9 11 10 3 1 1 Average Overweight (x) 2 | . . 1 1 2 1 2 4 3 4 6 9 2 1 1 1 Largest Inventory Capacity 25 | . 20 20 25 25 25 25 25 25 25 25 25 25 25 25 25 Average Capacity 23 | . 11 20 23 25 25 25 25 25 25 25 25 25 25 25 25 Most Carried 25 | . 12 12 25 25 25 25 25 25 25 25 25 25 25 25 25 Average Carried 22 | . 8 9 22 25 24 24 25 25 25 23 23 21 23 25 24 Final Capacity 25 | 8 20 20 25 25 25 25 25 25 25 25 25 25 25 25 25 Final Carried 25 | 6 12 10 25 25 22 25 25 25 25 20 25 17 25 25 23 Class Distribution -------------------- 43% | Scavenger-Tank 22% | Tank 15% | Mutant 7% | Skirmisher 6% | Scavenger-Gunner Dominant Class ---------------- Mutant | -10/Materials Mutant | -10/Mines Scavenger-Tank | -9/Materials Scavenger-Tank | -9/Mines Scavenger-Tank | -8/Materials Tank | -7/Factory Tank | -7/Lower Caves Tank | -7/Lower Caves Tank | -7/Data Miner Mutant | -6/Proximity Caves Scavenger-Gunner | -6/Factory Scavenger-Tank | -6/Extension Scavenger-Tank | -6/Cetus Scavenger-Tank | -6/Archives Scavenger-Tank | -6/Hub_04(d) Resources | -11 -10 -10 -9 -9 -8 -7 -7 -7 -7 -6 -6 -6 -6 -6 -6 ----------- Run | Yrd Mat Min Mat Min Mat Fac Low Low Dat Pro Fac Ext Cet Arc Hub Matter Collected 5588 | 142 208 96 725 18 622 725 90 60 . 261 709 1518 289 51 74 Remotely 337 | . . . . . . . . . . . 123 214 . . . Salvage Created 9857 | . 853 187 1834 36 1944 1054 . 142 . 183 1267 1758 217 . 382 Parts 454 | . 48 12 100 4 90 43 . 3 . 4 63 62 9 . 16 Haulers Intercepted 11 | . 2 . 6 . 3 . . . . . . . . . . Recyclers Shooed 9 | . 3 . . . . 2 . . . . 3 . . . 1 Parts Field Recycled . | . . . . . . . . . . . . . . . . Retrieved Matter . | . . . . . . . . . . . . . . . . Parts Self-Destructed 6 | . . . . . . . . 2 . 4 . . . . . Prevented 1 | . . . . . . . . 1 . . . . . . . Kills | -11 -10 -10 -9 -9 -8 -7 -7 -7 -7 -6 -6 -6 -6 -6 -6 ------- Run | Yrd Mat Min Mat Min Mat Fac Low Low Dat Pro Fac Ext Cet Arc Hub Combat Hostiles Destroyed 195 | . 18 8 34 3 41 24 . 4 . 5 25 31 1 . 1 Guns 96 | . 15 3 17 1 21 15 . 2 . 1 6 14 . . 1 Cannons 76 | . 2 5 14 1 16 8 . 2 . 2 17 9 . . . AOE 16 | . 1 . 3 . 3 . . . . 2 1 6 . . . Classes Destroyed 19 | . 7 2 3 . 3 3 . . . . . 1 . . . Worker 8 | . 1 1 . . 3 1 . . . . 1 1 . . . Builder 7 | . . . . . . 1 . . . . 3 3 . . . Tunneler 4 | . . . . . 2 . . . . . . 2 . . . Hauler 11 | . 2 . 6 . 3 . . . . . . . . . . Recycler 10 | . 1 . 2 . 1 1 . . . . 2 3 . . . Mechanic 1 | . . . . . 1 . . . . . . . . . . Operator 2 | . 1 . . . . . . . . . . 1 . . . Watcher 4 | . 1 . . . 1 1 . . . . . 1 . . . Swarmer 30 | . 6 3 3 3 4 1 . . . . 7 3 . . . Grunt 99 | . 12 2 19 . 26 11 . 3 . 3 7 16 . . . Brawler 6 | . . . 1 . 1 2 . . . 1 . 1 . . . Duelist 4 | . . . 1 . 2 . . . . . . 1 . . . Protector 1 | . . . . . 1 . . . . . . . . . . Sentry 32 | . . . 10 . 7 3 . 1 . 1 5 4 . . 1 Demolisher 1 | . . 1 . . . . . . . . . . . . . Hunter 7 | . . . . . . 2 . . . . 2 3 . . . Programmer 9 | . . . . . . 5 . . . . 4 . . . . Behemoth 2 | . . . . . . . . . . . . 2 . . . Cetus Guard 1 | . . . . . . . . . . . . . 1 . . Enhanced Grunt 3 | . . . . . . . . . . . . . . . 3 Assembled 2 | . . 2 . . . . . . . . . . . . . Thug 3 | . . . . . . . . . . . . 2 1 . . Butcher 1 | . . . . . . . . . . . . 1 . . . Best Kill Streak 14 | . 5 5 3 3 7 3 . 3 . 4 5 14 1 . 1 Combat Bots Only 9 | . 3 5 3 3 7 3 . 3 . 4 5 9 1 . 1 Max Kills in Single Turn 4 | . 2 1 1 1 2 2 . 1 . 2 2 4 1 . 2 Gunslinging . | . . . . . . . . . . . . . . . . Exploded 2 | . 1 . 1 . 1 . . . . 2 1 2 . . . Melee . | . . . . . . . . . . . . . . . . Uniques/NPCs Destroyed 1 | . . . . . . . . . . . . . 1 . . A7 (-6/Cetus) Combat | -11 -10 -10 -9 -9 -8 -7 -7 -7 -7 -6 -6 -6 -6 -6 -6 -------- Run | Yrd Mat Min Mat Min Mat Fac Low Low Dat Pro Fac Ext Cet Arc Hub Hostile Shots Fired 1602 | . 75 53 130 13 169 238 . 48 . 102 288 378 11 4 93 Missed 516 | . 16 12 27 2 53 83 . 24 . 31 106 124 5 1 32 Hits 1086 | . 59 41 103 11 116 155 . 24 . 71 182 254 6 3 61 Melee 20 | . . 2 3 . 6 3 . . . 3 1 2 . . . Projectile 1066 | . 59 39 100 11 110 152 . 24 . 68 181 252 6 3 61 AOE 6 | . . 6 . . . . . . . . . . . . . Critical Strikes 37 | . . 2 3 . 10 7 . . . 1 5 2 2 . 5 Part Disruptions 1 | . . . . . . . . . . . 1 . . . . Damage Taken 15857 | . 713 673 1402 79 1919 1999 . 247 . 864 2145 4055 145 74 1542 Core 1768 | . 139 93 260 . 153 154 . 42 . 73 177 482 . . 195 Absorbed by Shields 83 | . . . . . . . . . . . . 28 55 . . Regen/Repaired (Parts) 209 | . . . . . 209 . . . . . . . . . . Core Remaining (%) 55 | 100 . 7 . 35 72 . . . . 61 . . . . . Volleys Fired 643 | . 65 23 95 6 107 77 . 12 . 18 77 114 28 . 21 Largest 3 | . 2 2 3 3 3 3 . 3 . 2 3 3 3 . 3 Hottest 480 | . 105 80 147 147 152 242 . 201 . 121 224 224 217 . 480 Shots Fired 1613 | . 121 46 258 18 311 228 . 34 . 28 206 245 78 . 40 Gun 1029 | . 104 23 174 12 214 166 . 22 . 5 71 120 78 . 40 Cannon 540 | . 17 18 77 6 92 62 . 12 . 16 135 105 . . . Launcher 34 | . . . 2 . 5 . . . . 7 . 20 . . . Special 10 | . . 5 5 . . . . . . . . . . . . Kinetic 671 | . 33 23 145 6 102 62 . 12 . 11 116 136 22 . 3 Thermal 817 | . 21 23 111 12 204 166 . 22 . 10 81 74 56 . 37 Explosive 34 | . . . 2 . 5 . . . . 7 . 20 . . . Electromagnetic 91 | . 67 . . . . . . . . . 9 15 . . . Robot Hit Streak 31 | . 17 5 13 2 31 17 . 14 . 5 14 14 7 . 10 Robot Miss Streak 8 | . 4 4 3 3 6 4 . 3 . 3 5 8 3 . 3 Penetration Max 1 | . . . . . . 1 . . . . . . 1 . . Secondary Targets . | . . . . . . . . . . . . . . . . Shots Hit Robots 1045 | . 83 27 162 6 211 149 . 28 . 17 123 169 48 . 22 Core Hits 552 | . 40 16 58 2 103 60 . 11 . 16 52 157 19 . 18 Critical Kills 7 | . . . 1 1 2 . . . . . 1 1 1 . . Critical Parts Destroyed 4 | . . . . . 1 . . . . . 1 . 2 . . Critical Strikes 46 | . . . 3 1 15 4 . 2 . . 15 2 4 . . Burn 20 | . . . 2 . 12 1 . . . . 5 . . . . Meltdown 4 | . . . 1 1 1 . . . . . . 1 . . . Destroy 8 | . . . . . 2 . . . . . 2 . 4 . . Blast 13 | . . . . . . 3 . 2 . . 8 . . . . Corrupt 1 | . . . . . . . . . . . . 1 . . . Melee Attacks . | . . . . . . . . . . . . . . . . Impact . | . . . . . . . . . . . . . . . . Slashing . | . . . . . . . . . . . . . . . . Piercing . | . . . . . . . . . . . . . . . . Sneak Attacks . | . . . . . . . . . . . . . . . . Combat Hostiles . | . . . . . . . . . . . . . . . . Follow-up Attacks . | . . . . . . . . . . . . . . . . Damage Inflicted 25894 | . 1414 285 3076 107 4587 3351 . 717 . 688 3110 6150 1449 8 952 Guns 12848 | . 1025 78 1646 63 2353 2287 . 465 . 72 839 1992 1449 . 579 Cannons 8577 | . 141 162 1023 44 1328 1028 . 252 . 258 2211 2130 . . . Explosions 4057 | . 238 . 297 . 878 . . . . 358 19 1972 . . 295 Melee . | . . . . . . . . . . . . . . . . Ramming 324 | . 10 . 67 . 28 36 . . . . 41 56 . 8 78 Kinetic 8753 | . 224 78 1296 32 1050 1028 . 252 . 197 1803 2304 489 . . Thermal 11750 | . 403 207 1416 75 2631 2287 . 465 . 133 1020 1574 960 . 579 Explosive 3505 | . . . 297 . 878 . . . . 358 . 1972 . . . Electromagnetic 1562 | . 777 . . . . . . . . . 246 244 . . 295 Impact . | . . . . . . . . . . . . . . . . Slashing . | . . . . . . . . . . . . . . . . Piercing . | . . . . . . . . . . . . . . . . Highest Corruption 68 | . . . . . 6 7 7 7 . 3 4 17 43 43 68 Average Corruption 8 | . . . . . 1 4 7 4 . 2 2 7 39 43 44 Corruption Purged 7 | . . . . . . . . 7 . . . . . . . Corruption Blocked . | . . . . . . . . . . . . . . . . Effects 371 | . . . . . 27 66 21 20 . 11 28 111 45 18 24 Message Errors 90 | . . . . . 3 18 7 6 . 3 5 25 11 7 5 Matter Fused 88 | . . . . . 9 13 2 2 . 2 10 30 11 6 3 Heat Flow Errors 49 | . . . . . 5 7 4 2 . 2 4 13 5 2 5 Energy Discharges 44 | . . . . . 2 10 3 3 . 1 3 15 4 1 2 Parts Rejected 2 | . . . . . . 1 . . . . . 1 . . . Parts Fused 4 | . . . . . . 1 . . . . . 1 1 . 1 Data Loss (minor) 42 | . . . . . 6 6 4 4 . 2 3 10 3 1 3 Data Loss (major) 14 | . . . . . 1 3 1 . . . . 6 2 1 . Misfires 13 | . . . . . 1 6 . 1 . . . 5 . . . Alerts 6 | . . . . . . . . 1 . . 1 2 2 . . Weapon Failures 19 | . . . . . . 1 . 1 . 1 2 3 6 . 5 Overload Shots 2 | . . . . . . . . . . . . . . . 2 Overflow Damage 170 | . 30 . 40 2 8 6 . . . . 56 16 . . 12 Projectiles 77 | . . . 1 2 4 6 . . . . 49 15 . . . Explosions 74 | . 30 . 39 . 4 . . . . . . 1 . . . Melee 19 | . . . . . . . . . . . 7 . . . 12 Knockbacks 32 | . . . . . 10 5 . . . . 12 4 . . 1 Impact 3 | . . . . . . 1 . . . . 1 . . . 1 Kinetic 28 | . . . . . 9 4 . . . . 11 4 . . . Secondary 1 | . . . . . 1 . . . . . . . . . . Self-Inflicted Damage 489 | . 89 . . . 73 9 . . . 58 63 101 . . 96 Shots 17 | . 2 . . . 4 . . . . 2 3 5 . . 1 Rammed 37 | . 2 . 12 . 3 6 . . . . 4 6 . 1 3 Targets Rammed 42 | . 4 . 12 . 5 6 . . . . 5 6 . 1 3 Kicked 2 | . 2 . . . . . . . . . . . . . . Crushed 3 | . . . . . 2 . . . . . 1 . . . . Highest Temperature 742 | . 198 100 508 60 202 325 195 183 . 284 211 742 201 191 409 Average Temperature 81 | . 59 38 77 27 28 77 105 50 . 96 87 147 60 101 139 Received Heat Transfer 4447 | . 261 141 591 . 927 480 . 108 . 288 402 1188 13 . 48 Effects 22 | . . . 2 . . 1 . . . . . 17 . . 2 Shutdowns 6 | . . . 1 . . . . . . . . 3 . . 2 Energy Bleed 3 | . . . . . . 1 . . . . . 2 . . . Interference 1 | . . . . . . . . . . . . 1 . . . Matter Decay 2 | . . . . . . . . . . . . 2 . . . Short Circuit 2 | . . . . . . . . . . . . 2 . . . Damage (minor) 1 | . . . . . . . . . . . . 1 . . . Damage (major) 6 | . . . . . . . . . . . . 6 . . . Damage (core) 1 | . . . 1 . . . . . . . . . . . . Siege Activations . | . . . . . . . . . . . . . . . . Martial Activations . | . . . . . . . . . . . . . . . . Shielding Activations . | . . . . . . . . . . . . . . . . Robots Disrupted . | . . . . . . . . . . . . . . . . Combat Hostiles . | . . . . . . . . . . . . . . . . Robots Corrupted 5 | . 1 . . . . . . . . . 2 1 . . 1 Combat Hostiles 2 | . . . . . . . . . . . 1 1 . . . Parts Fried 10 | . . . . . . . . . . . 4 5 . . 1 Impact Corruptions 3 | . . . . . . . . . . . 1 . . . 2 Robots Melted 6 | . . . 1 1 1 1 . . . . . 1 1 . . Combat Hostiles 5 | . . . . 1 1 1 . . . . . 1 1 . . Parts Melted 31 | . 1 . 2 . 11 6 . . . . 4 6 . . 1 Heat Transferred 23267 | . 646 481 2960 148 6660 4527 . 895 . 222 2371 2474 1161 . 722 Parts Sabotaged . | . . . . . . . . . . . . . . . . Parts Stolen . | . . . . . . . . . . . . . . . . Parts Stripped . | . . . . . . . . . . . . . . . . Power Chain Reactions 4 | . 3 . . . . . . . . . 1 . . . . Alert | -11 -10 -10 -9 -9 -8 -7 -7 -7 -7 -6 -6 -6 -6 -6 -6 ------- Run | Yrd Mat Min Mat Min Mat Fac Low Low Dat Pro Fac Ext Cet Arc Hub Maximum Alert Level 2 | . . . 2 1 2 1 . . . . 1 1 . . 1 Low Security (%) 75 | . 100 100 66 87 21 84 . . . . 68 98 100 100 75 Level 1 19 | . . . 18 12 63 15 . . . . 31 1 . . 24 Level 2 4 | . . . 14 . 14 . . . . . . . . . . Level 3 . | . . . . . . . . . . . . . . . . Level 4 . | . . . . . . . . . . . . . . . . Level 5 . | . . . . . . . . . . . . . . . . High Security . | . . . . . . . . . . . . . . . . Max Security . | . . . . . . . . . . . . . . . . Peak Influence 525 | . 171 90 441 233 525 254 . . . . 269 241 169 170 349 Initial 227 | . . 35 5 163 . 227 . . . . . 95 77 25 7 Average 137 | . 81 40 155 99 269 146 . . . . 130 75 88 85 136 Influence Increases 7244 | . 587 145 1062 70 1235 802 . 135 . 110 852 1303 302 175 466 Destroy 0b10 Robot/C 4440 | . 360 120 680 60 800 480 . 80 . 100 540 880 160 80 100 Destroy 0b10 Robot/NC 255 | . 30 5 40 . 60 20 . . . . 30 60 10 . . Destroy Leader 922 | . 86 20 212 10 168 132 . 10 . 10 120 124 . . 30 Allied During Kill 363 | . . . . . . . . . . . . 92 119 80 72 Successful Hack 82 | . 15 . 22 . 4 14 . . . . . 27 . . . Select Force Hacks 30 | . . . 30 . . . . . . . . . . . . Disable Machine 390 | . . . 45 . 45 60 . . . . 90 . . 15 135 Destroy Structure 342 | . 21 . 33 . 23 21 . . . . 27 90 13 . 114 Lose Combat Pursuer 420 | . 75 . . . 135 75 . 45 . . 45 30 . . 15 Influence Decreases 6958 | . 495 222 658 489 734 1056 247 135 . 110 655 1361 378 218 200 Entered New Map 905 | . . 57 10 256 . 274 93 . . . . 102 62 38 13 Time Decay 4793 | . 465 110 604 233 514 702 154 135 . 90 515 628 316 180 147 Lost Part 709 | . 30 55 44 . 70 80 . . . 20 100 290 . . 20 Lost Ally 251 | . . . . . . . . . . . 40 191 . . 20 Purge Threat 300 | . . . . . 150 . . . . . . 150 . . . Squads Dispatched 40 | . 5 . 5 . 5 10 . . . . 7 7 . . 1 Investigation 7 | . 3 . 1 . . 1 . . . . 1 1 . . . Extermination 10 | . . . . . . 5 . . . . 4 . . . 1 Reinforcement 19 | . 2 . 4 . 4 1 . . . . 2 6 . . . Assault 1 | . . . . . 1 . . . . . . . . . . Garrison 3 | . . . . . . 3 . . . . . . . . . Intercept . | . . . . . . . . . . . . . . . . Searches Triggered . | . . . . . . . . . . . . . . . . Data Miner Redirects 1 | . . . . . . . . . . . 1 . . . . Construction Impeded 5 | . . . . . 1 . . . . . . 4 . . . Haulers Reinforced . | . . . . . . . . . . . . . . . . Active Scanning Responses . | . . . . . . . . . . . . . . . . Cargo Convoy Interrupts . | . . . . . . . . . . . . . . . . Stealth | -11 -10 -10 -9 -9 -8 -7 -7 -7 -7 -6 -6 -6 -6 -6 -6 --------- Run | Yrd Mat Min Mat Min Mat Fac Low Low Dat Pro Fac Ext Cet Arc Hub Distress Signals 19 | . 4 . 3 . 3 3 . . . . 1 3 2 . . Communications Jammed . | . . . . . . . . . . . . . . . . Distress Signals . | . . . . . . . . . . . . . . . . Times Spotted 358 | . 38 9 69 2 67 43 . 8 . 5 44 49 12 4 8 Peak Tracking Total 13 | . 4 5 7 2 13 4 . 4 . 4 4 6 5 2 5 Tactical Retreats 19 | . 4 . . . 4 3 . 2 . . 3 2 . . 1 Traps | -11 -10 -10 -9 -9 -8 -7 -7 -7 -7 -6 -6 -6 -6 -6 -6 ------- Run | Yrd Mat Min Mat Min Mat Fac Low Low Dat Pro Fac Ext Cet Arc Hub Traps Triggered 17 | . 2 . 1 . 1 5 . . . . 3 5 . . . Indirectly . | . . . . . . . . . . . . . . . . Trap Hack Attempts . | . . . . . . . . . . . . . . . . Triggered . | . . . . . . . . . . . . . . . . Disarmed . | . . . . . . . . . . . . . . . . Reprogrammed . | . . . . . . . . . . . . . . . . Reused . | . . . . . . . . . . . . . . . . Traps Extracted . | . . . . . . . . . . . . . . . . Installed . | . . . . . . . . . . . . . . . . Triggered . | . . . . . . . . . . . . . . . . Machines | -11 -10 -10 -9 -9 -8 -7 -7 -7 -7 -6 -6 -6 -6 -6 -6 ---------- Run | Yrd Mat Min Mat Min Mat Fac Low Low Dat Pro Fac Ext Cet Arc Hub Machines Disabled 26 | . . . 3 . 3 4 . . . . 6 . . 1 9 Max in Single Turn 7 | . . . 1 . 1 1 . . . . 4 . . . 7 Network Hub 1 | . . . . . . . . . . . . . . . 1 Machines Repaired . | . . . . . . . . . . . . . . . . Machines Dismantled 1 | . . . 1 . . . . . . . . . . . . Machines Sabotaged . | . . . . . . . . . . . . . . . . Overloaded Fab Kills . | . . . . . . . . . . . . . . . . Hacking | -11 -10 -10 -9 -9 -8 -7 -7 -7 -7 -6 -6 -6 -6 -6 -6 --------- Run | Yrd Mat Min Mat Min Mat Fac Low Low Dat Pro Fac Ext Cet Arc Hub Machines Accessed 45 | . 7 . 8 . 8 7 . . 4 . 5 5 . . 1 Terminals 29 | . 6 . 7 . 5 3 . . . . 2 5 . . 1 Fabricators 5 | . . . . . . 2 . . . . 3 . . . . Repair Stations 2 | . . . . . 2 . . . . . . . . . . Recycling Units 2 | . 1 . 1 . . . . . . . . . . . . Scanalyzers . | . . . . . . . . . . . . . . . . Garrison Access 3 | . . . . . 1 2 . . . . . . . . . Total Hacks 113 | . 18 . 20 . 17 10 . . 20 . 14 13 . . 1 Successful 58 | . 8 . 14 . 8 1 . . 20 . 5 2 . . . Failed 55 | . 10 . 6 . 9 9 . . . . 9 11 . . 1 Catastrophic 15 | . . . . . 2 5 . . . . 2 5 . . 1 Database Lockouts . | . . . . . . . . . . . . . . . . Manual 68 | . 19 . 17 . 11 4 . . . . 9 6 1 . 1 Terminals 70 | . 16 . 19 . 10 5 . . . . 6 13 . . 1 Fabricators 11 | . . . . . . 3 . . . . 8 . . . . Repair Stations 5 | . . . . . 5 . . . . . . . . . . Recycling Units 3 | . 2 . 1 . . . . . . . . . . . . Scanalyzers . | . . . . . . . . . . . . . . . . Garrison Access 4 | . . . . . 2 2 . . . . . . . . . Terminal Hacks 28 | . . . 5 . 1 . . . 20 . 1 1 . . . Record 4 | . . . 1 . . . . . 3 . . . . . . Part Schematic 8 | . . . . . . . . . 8 . . . . . . Robot Schematic 6 | . . . . . . . . . 6 . . . . . . Robot Analysis 3 | . . . 3 . . . . . . . . . . . . Prototype ID Bank 3 | . . . . . . . . . 3 . . . . . . Branch Access Points 2 | . . . 1 . . . . . . . 1 . . . . Unreport Threat 2 | . . . . . 1 . . . . . . 1 . . . Fabricator Hacks 2 | . . . . . . 1 . . . . 1 . . . . Network Status 1 | . . . . . . . . . . . 1 . . . . Build 1 | . . . . . . 1 . . . . . . . . . Repair Station Hacks 4 | . . . . . 4 . . . . . . . . . . Scan Component 2 | . . . . . 2 . . . . . . . . . . Repair 2 | . . . . . 2 . . . . . . . . . . Recycling Unit Hacks . | . . . . . . . . . . . . . . . . Scanalyzer . | . . . . . . . . . . . . . . . . Garrison Access Hacks . | . . . . . . . . . . . . . . . . Unauthorized Hacks 24 | . 8 . 9 . 3 . . . . . 3 1 . . . Terminals 20 | . 8 . 8 . 3 . . . . . . 1 . . . Botnet 7 | . 3 . 3 . . . . . . . . 1 . . . Skim 13 | . 5 . 5 . 3 . . . . . . . . . . Fabricators 3 | . . . . . . . . . . . 3 . . . . Liberate 3 | . . . . . . . . . . . 3 . . . . Repair Stations . | . . . . . . . . . . . . . . . . Recycling Units 1 | . . . 1 . . . . . . . . . . . . Tunnel 1 | . . . 1 . . . . . . . . . . . . Scanalyzers . | . . . . . . . . . . . . . . . . Garrison Access . | . . . . . . . . . . . . . . . . Data Cores Recovered 1 | . 1 . . . . . . . . . . . . . . Used 1 | . 1 . . . . . . . . . . . . . . Hacking Detections 36 | . 5 . 6 . 7 6 . . . . 5 5 1 . 1 Full Trace Events 6 | . 3 . . . 1 1 . . . . . 1 . . . Feedback Events . | . . . . . . . . . . . . . . . . Feedback Blocked . | . . . . . . . . . . . . . . . . Robot Schematics Acquired 6 | . . . . . . . . . 6 . . . . . . Robots Built . | . . . . . . . . . . . . . . . . Authchips . | . . . . . . . . . . . . . . . . Time . | . . . . . . . . . . . . . . . . Total Robot Build Rating . | . . . . . . . . . . . . . . . . Part Schematics Acquired 8 | . . . . . . . . . 8 . . . . . . Parts Built 2 | . . . . . . 2 . . . . . . . . . Authchips . | . . . . . . . . . . . . . . . . Time 53 | . . . . . . 53 . . . . . . . . . Total Part Build Rating 12 | . . . . . . 12 . . . . . . . . . Parts Repaired 2 | . . . . . 2 . . . . . . . . . . Time 58 | . . . . . 58 . . . . . . . . . . Parts Recycled . | . . . . . . . . . . . . . . . . Recycled Matter . | . . . . . . . . . . . . . . . . Retrieved Matter . | . . . . . . . . . . . . . . . . Retrieved Components . | . . . . . . . . . . . . . . . . Parts Scanalyzed . | . . . . . . . . . . . . . . . . Part Schematics Acquired . | . . . . . . . . . . . . . . . . Parts Damaged . | . . . . . . . . . . . . . . . . Bothacking | -11 -10 -10 -9 -9 -8 -7 -7 -7 -7 -6 -6 -6 -6 -6 -6 ------------ Run | Yrd Mat Min Mat Min Mat Fac Low Low Dat Pro Fac Ext Cet Arc Hub Used RIF Installer . | . . . . . . . . . . . . . . . . Robots Hacked . | . . . . . . . . . . . . . . . . Non-combat . | . . . . . . . . . . . . . . . . Combat . | . . . . . . . . . . . . . . . . Robot Hacks Applied . | . . . . . . . . . . . . . . . . Relay Couplers Released . | . . . . . . . . . . . . . . . . Fabnet Peak Effective % . | . . . . . . . . . . . . . . . . Robots Rewired 11 | . . . . . . . . . . . . 11 . . . Allies Hacked . | . . . . . . . . . . . . . . . . Hacks Repelled . | . . . . . . . . . . . . . . . . Allies | -11 -10 -10 -9 -9 -8 -7 -7 -7 -7 -6 -6 -6 -6 -6 -6 -------- Run | Yrd Mat Min Mat Min Mat Fac Low Low Dat Pro Fac Ext Cet Arc Hub Total Allies 28 | . . . . . . . . . . . 2 21 5 . . Largest Group 9 | . . . . . . . . . . . 2 6 9 7 5 Highest-Rated Group 700 | . . . . . . . . . . . 64 235 700 514 396 Highest-Rated Ally 159 | . . . . . . . . . . . 32 159 159 96 96 Total Orders . | . . . . . . . . . . . . . . . . Ally Attacks 194 | . . . . . . . . . . . 8 89 51 26 20 Total Damage 5497 | . . . . . . . . . . . 321 1733 1634 1112 697 Kills 35 | . . . . . . . . . . . 2 15 9 5 4 Allies Corrupted 4 | . . . . . . . . . . . . 1 . . 3 Allies Melted 1 | . . . . . . . . . . . . 1 . . . Intel | -11 -10 -10 -9 -9 -8 -7 -7 -7 -7 -6 -6 -6 -6 -6 -6 ------- Run | Yrd Mat Min Mat Min Mat Fac Low Low Dat Pro Fac Ext Cet Arc Hub Active Infowar (turns) 9527 | . . . . . . 2224 720 1145 135 749 2620 1934 . . . Sensors 1537 | . . . . . . 1537 . . . . . . . . . Terrain 7990 | . . . . . . 687 720 1145 135 749 2620 1934 . . . Robot Analysis Total 3 | . . . 3 . . . . . . . . . . . . Derelict Logs Recovered 2 | . . 1 . 1 . . . . . . . . . . . Drone Launches . | . . . . . . . . . . . . . . . . Drone Recoveries . | . . . . . . . . . . . . . . . . Exploration | -11 -10 -10 -9 -9 -8 -7 -7 -7 -7 -6 -6 -6 -6 -6 -6 ------------- Run | Yrd Mat Min Mat Min Mat Fac Low Low Dat Pro Fac Ext Cet Arc Hub Turns Passed 23423 | . 1933 240 4276 564 2694 3020 720 1145 135 749 2641 3806 753 360 387 Spaces Moved 8400 | 1 1033 60 1294 171 844 1082 445 348 85 363 938 1240 206 154 136 Core 1 | . 1 . . . . . . . . . . . . . . Treads 4931 | . 444 60 1135 171 844 675 2 . . 2 40 1062 206 154 136 Legs 589 | 1 588 . . . . . . . . . . . . . . Wheels 2879 | . . . 159 . . 407 443 348 85 361 898 178 . . . Hover . | . . . . . . . . . . . . . . . . Flight . | . . . . . . . . . . . . . . . . Fastest Speed 120 | 120 120 240 145 320 225 145 160 145 160 160 225 225 232 232 232 Average Speed 233 | 120 153 264 287 320 252 239 161 159 160 189 242 267 247 232 232 Slowest Speed 570 | 120 240 320 560 320 320 560 560 160 160 570 480 326 385 232 232 Overloaded Moves . | . . . . . . . . . . . . . . . . Propulsion Burnouts . | . . . . . . . . . . . . . . . . Robots Hopped . | . . . . . . . . . . . . . . . . Potential Cave-ins . | . . . . . . . . . . . . . . . . Cave-ins Triggered . | . . . . . . . . . . . . . . . . Exploration Rate (%) 53 | 1 98 15 96 36 64 31 66 48 70 48 25 87 57 84 22 Regions Visited 15 Branch Regions 10 Pre-discovered Areas 2 | . . . 1 . . . . . 1 . . . . . . Known Exits Taken 7 | . . . 1 1 . 1 1 1 1 . 1 . . . . Unknown Exits Taken 8 | 1 1 1 . . 1 . . . . 1 . 1 1 1 . Scrap Searched 10 | . . 1 . 1 . . 5 1 . 2 . . . . . Spaces Dug 2 | . . . . . . 2 . . . . . . . . . Terrain Destroyed 495 | . 18 . 29 . 19 14 . 3 . 48 21 165 10 . 168 Melee . | . . . . . . . . . . . . . . . . Projectile 74 | . . . . . . 14 . 3 . 3 17 22 10 . 5 AOE 421 | . 18 . 29 . 19 . . . . 45 4 143 . . 163 Terrain Rammed . | . . . . . . . . . . . . . . . . Walls Destroyed . | . . . . . . . . . . . . . . . . Machines Disabled . | . . . . . . . . . . . . . . . . Actions | -11 -10 -10 -9 -9 -8 -7 -7 -7 -7 -6 -6 -6 -6 -6 -6 --------- Run | Yrd Mat Min Mat Min Mat Fac Low Low Dat Pro Fac Ext Cet Arc Hub Total 10864 | . 1259 96 1635 176 1163 1339 446 911 84 398 1126 1521 391 156 163 Wait 1282 | . 129 7 124 . 162 106 . 548 . 9 55 17 122 2 1 Move 8385 | . 1032 59 1293 170 843 1081 444 347 84 362 937 1239 205 153 136 Hop . | . . . . . . . . . . . . . . . . Pick Up 94 | . 8 1 38 . 6 12 . . . . 14 4 11 . . Fast Attach 93 | . 10 1 10 . 7 23 . 2 . 2 14 15 9 . . Attach 59 | . 2 4 7 . 9 5 . . . 6 7 17 . . 2 Detach 19 | . . . 1 . 1 2 . 1 . 1 4 5 4 . . Swap 49 | . 3 1 15 . 11 7 1 . . . 3 7 1 . . Drop 101 | . 6 . 36 . 12 20 1 1 . . 10 4 11 . . Fire 643 | . 65 23 95 6 107 77 . 12 . 18 77 114 28 . 21 Melee . | . . . . . . . . . . . . . . . . Ram 4 | . . . . . . 2 . . . . 2 . . . . Kick 2 | . 2 . . . . . . . . . . . . . . Crush 36 | . 2 . 12 . 5 4 . . . . 3 6 . 1 3 Escape Stasis 6 | . . . . . . . . . . . . 6 . . . Rewire 87 | . . . . . . . . . . . . 87 . . . Trap . | . . . . . . . . . . . . . . . . Miscellaneous 4 | . . . 4 . . . . . . . . . . . . Route ------- -11/Scrapyard -10/Materials (discovered 5 exits: *Mat x3 / [*Min] / [*Sub]) -10/Mines -9/Materials (discovered 7 exits: *Mat x3 / *Min x2 / *Sto x2) -9/Mines (discovered 2 exits: *Mat / [*Exi]) -8/Materials (discovered 2 exits: *Fac x2) -7/Factory -7/Lower Caves -7/Lower Caves -7/Data Miner -6/Proximity Caves -6/Factory (discovered 5 exits: [*Fac] / Low x2 / *Ext x2) -6/Extension (discovered 2 exits: [*Fac] / *Cet) -6/Cetus (discovered 2 exits: [*Fac] / [*Arc]) -6/Archives (discovered 3 exits: [*Fac] / *Hub x2) -6/Hub_04(d) (discovered 1 exit: [*Fac]) History --------- Turn | Location | Event 1 | -11/Scrapyard | Discovered new exit (range 0) 1 | -11/Scrapyard | Entered Materials 305 | -10/Materials | Build established: Mutant 627 | -10/Materials | Discovered new exit (range 5) 640 | -10/Materials | Discovered new exit (range 12) 702 | -10/Materials | Discovered new exit (range 15) 974 | -10/Materials | Discovered new exit (range 9) 1054 | -10/Materials | Core integrity fell below 50% 1819 | -10/Materials | Discovered new exit (range 13) 1934 | -10/Materials | Entered Mines 1935 | -10/Mines | Assembled infested the area 1982 | -10/Mines | Core integrity fell below 20% 2030 | -10/Mines | Lost 4 parts (1p2n1u) 2050 | -10/Mines | Met a Derelict bent on vengeance 2058 | -10/Mines | Learned Materials terminal intel 2084 | -10/Mines | Discovered new exit (range 10) 2174 | -10/Mines | Entered Materials 2174 | -9/Materials | Evolved 2 slots: Utility x1, Weapon x1 2175 | -9/Materials | Loaded intel: 12 terminal locations 2663 | -9/Materials | Discovered new exit (range 4) 2692 | -9/Materials | Discovered new exit (range 16) 2819 | -9/Materials | Build established: Scavenger-Tank 3093 | -9/Materials | Discovered new exit (range 8) 3919 | -9/Materials | Learned Storage security intel 3951 | -9/Materials | Learned location of 1 exit from Storage 3973 | -9/Materials | Learned Storage emergency access door positions 3986 | -9/Materials | Learned location of 1 exit from Storage 3991 | -9/Materials | Loaded intel: 1 repair station location 3992 | -9/Materials | Identified exit to Mines 3992 | -9/Materials | Identified exit to Materials 4014 | -9/Materials | Learned Storage emergency access door positions 4025 | -9/Materials | Discovered new exit (range 5) 5040 | -9/Materials | Core integrity fell below 50% 5660 | -9/Materials | Identified exit to Storage 6450 | -9/Materials | Entered Mines 6678 | -9/Mines | Learned 4 Materials zone layouts 6707 | -9/Mines | Deemed a non-threat by the Exiles lab entrance 6707 | -9/Mines | Discovered new exit (range 5) 6976 | -9/Mines | Discovered exit to Materials (range 4) 7014 | -9/Mines | Entered Materials 7014 | -8/Materials | Evolved 2 slots: Propulsion x1, Utility x1 7434 | -8/Materials | Repaired Med. Armor Plating 7630 | -8/Materials | Destroyed 7 combat bots 7648 | -8/Materials | Discovered new exit (range 14) 7828 | -8/Materials | Lost 3 parts (1n2u) 7913 | -8/Materials | Repaired Lgt. Treads 8400 | -8/Materials | Discovered new exit (range 16) 9126 | -8/Materials | Build established: Tank 9414 | -8/Materials | First assault squad dispatched 9708 | -8/Materials | Entered Factory 9708 | -7/Factory | Evolved 2 slots: Utility x2 9913 | -7/Factory | Garrison activated, responded to threat 11009 | -7/Factory | Fabricated Wave Gun (x2) 11118 | -7/Factory | Build established: Skirmisher 12278 | -7/Factory | Build established: Tank 12439 | -7/Factory | Discovered new exit (range 13) 12723 | -7/Factory | Identified exit to Lower Caves 12728 | -7/Factory | Entered Lower Caves 13418 | -7/Lower Caves | Discovered new exit (range 8) 13427 | -7/Lower Caves | Encountered a Warlord checkpoint 13431 | -7/Lower Caves | Identified exit to Lower Caves 13448 | -7/Lower Caves | Entered another Lower Caves area 13609 | -7/Lower Caves | Attracted the attention of an 0b10 checkpoint 14129 | -7/Lower Caves | Build established: Skirmisher 14457 | -7/Lower Caves | Discovered new exit (range 11) 14477 | -7/Lower Caves | Identified exit to Data Miner 14593 | -7/Lower Caves | Entered Data Miner 14593 | -7/Data Miner | Discovered new exit (range 6) 14624 | -7/Data Miner | Met Data Miner 14664 | -7/Data Miner | Build established: Tank 14664 | -7/Data Miner | Learned location of Section 7 (-3) 14664 | -7/Data Miner | Acquired the access code to Warlord's prototype stash 14688 | -7/Data Miner | Received God Mode back door access code from Data Miner 14726 | -7/Data Miner | Identified exit to Proximity Caves 14728 | -7/Data Miner | Entered Proximity Caves 15092 | -6/Proximity Caves | Lost 4 parts (1n2u1w) 15254 | -6/Proximity Caves | Attracted the attention of an 0b10 checkpoint 15287 | -6/Proximity Caves | Lost 3 parts (1u2w) 15339 | -6/Proximity Caves | Build established: Mutant 15419 | -6/Proximity Caves | Discovered new exit (range 11) 15477 | -6/Proximity Caves | Entered Factory 15477 | -6/Factory | Evolved 2 slots: Power x1, Utility x1 16213 | -6/Factory | Build established: Tank 16613 | -6/Factory | Discovered new exit (range 16) 16680 | -6/Factory | Build established: Scavenger-Tank 16852 | -6/Factory | Lost 4 parts (1p1u2w) 17211 | -6/Factory | Build established: Scavenger-Gunner 17339 | -6/Factory | Identified exit to Lower Caves 17339 | -6/Factory | Identified exit to Extension 17450 | -6/Factory | Incoming investigation squad redirected 18118 | -6/Factory | Entered Extension 18528 | -6/Extension | Build established: Scavenger-Tank 18664 | -6/Extension | Lost 4 parts (1n3u) 18680 | -6/Extension | Rescued a captive Derelict 18681 | -6/Extension | Rescued a captive Derelict 18937 | -6/Extension | Lost 4 allies 18943 | -6/Extension | Rescued a captive Derelict 18956 | -6/Extension | Rescued a captive Derelict 18958 | -6/Extension | Rescued a captive Derelict 19130 | -6/Extension | Rescued a captive Derelict 19943 | -6/Extension | Disrupted transfer network 20104 | -6/Extension | Lost 3 allies 20731 | -6/Extension | Spotted B-75 Beast 20772 | -6/Extension | Destroyed B-75 Beast 20789 | -6/Extension | Spotted B-75 Beast 20800 | -6/Extension | Lost 6 parts (1p2n1u2w) 20817 | -6/Extension | Destroyed B-75 Beast 20847 | -6/Extension | Core integrity fell below 50% 20940 | -6/Extension | Destroyed 9 combat bots 20942 | -6/Extension | Rescued a captive Derelict 20943 | -6/Extension | Rescued a captive Derelict 20948 | -6/Extension | Lost 8 parts (2n2u4w) 21144 | -6/Extension | Build established: Mutant 21279 | -6/Extension | Rescued a captive Derelict 21373 | -6/Extension | Lost 4 allies 21549 | -6/Extension | Rescued A7 21677 | -6/Extension | System corruption reached 10% 21841 | -6/Extension | Discovered new exit (range 10) 21846 | -6/Extension | Discovered new exit (range 6) 21924 | -6/Extension | Entered Cetus 21924 | -6/Cetus | Accompanied by 4 allies (A7) 21929 | -6/Cetus | Acquired a Cetus Manufacturing Module code from A7 21968 | -6/Cetus | Spotted Cetus Guard 21970 | -6/Cetus | Spotted Cetus Guard 21970 | -6/Cetus | Spotted Cetus Guard 21972 | -6/Cetus | Spotted Cetus Guard 21978 | -6/Cetus | Allies destroyed Cetus Guard 21996 | -6/Cetus | Destroyed Cetus Guard 21998 | -6/Cetus | Allies destroyed Cetus Guard 21999 | -6/Cetus | Allies destroyed Cetus Guard 22023 | -6/Cetus | System corruption reached 30% 22163 | -6/Cetus | Started Cetus Manufacturing Module 22188 | -6/Cetus | Manufactured an Enhanced Grunt 22213 | -6/Cetus | Manufactured an Enhanced Grunt 22238 | -6/Cetus | Manufactured an Enhanced Grunt 22263 | -6/Cetus | Manufactured an Enhanced Grunt 22288 | -6/Cetus | Manufactured an Enhanced Grunt 22310 | -6/Cetus | Build established: Scavenger-Tank 22319 | -6/Cetus | Discovered new exit (range 16) 22363 | -6/Cetus | Spotted Cetus Guard 22364 | -6/Cetus | Spotted Cetus Guard 22370 | -6/Cetus | Spotted Cetus Guard 22379 | -6/Cetus | Allies destroyed Cetus Guard 22381 | -6/Cetus | Spotted Cetus Guard 22384 | -6/Cetus | Allies destroyed Cetus Guard 22386 | -6/Cetus | Allies destroyed Cetus Guard 22399 | -6/Cetus | Discovered new exit (range 15) 22410 | -6/Cetus | Met Revision 17 22628 | -6/Cetus | Murdered A7 22633 | -6/Cetus | Extracted ID and sensor layout for unrecognized location from A7's data core 22674 | -6/Cetus | Security sweep announced 22677 | -6/Cetus | Entered Archives 22677 | -6/Archives | Accompanied by 7 allies 22775 | -6/Archives | Discovered new exit (range 16) 22870 | -6/Archives | Discovered new exit (range 16) 22960 | -6/Archives | Discovered new exit (range 15) 23037 | -6/Archives | Entered Hub_04(d) 23037 | -6/Hub_04(d) | Accompanied by 5 allies 23037 | -6/Hub_04(d) | Discovered new exit (range 11) 23193 | -6/Hub_04(d) | Core integrity fell below 20% 23328 | -6/Hub_04(d) | Network Hub disabled 23363 | -6/Hub_04(d) | Spotted Lightning 23368 | -6/Hub_04(d) | Spotted Lightning 23376 | -6/Hub_04(d) | Spotted Lightning 23424 | -6/Hub_04(d) | Destroyed by Lightning with EMDS Last Messages --------------- 23388_ Adv. Treads destroyed. 23389_ EMDS Slug penetrates Wall. 23395_ Wall collapses. 23395_ System corrupted: Heat flow error (+143). 23395_ Penetrated by EMDS Slug. 23395_ EMDS Slug penetrates Wall. 23397_ Penetrated by EMDS Slug. 23402_ EMDS Slug penetrates Wall. 23402_ Penetrated by EMDS Slug. 23402_ Hvy. Laser destroyed. 23406_ Integrated Corrupted Adv. Variable Charge Gun (+9). 23407_ Control Node disabled. 23408_ Penetrated by EMDS Slug. 23410_ Power failure, Quantum Reactor shutdown. 23410_ EMDS Slug penetrates Wall. 23415_ Penetrated by EMDS Slug. 23416_ System corrupted: Adv. Variable Charge Gun failed to cycle. 23417_ Penetrated by EMDS Slug. 23422_ EMDS Slug penetrates Wall. 23422_ Penetrated by EMDS Slug. Map ----- +----------------------------------------------------+ | ?????????????????????????????????????????????????? | | ?????????????????????? ??????????????????????????? | | ?????????????????????? ??????????????????????????? | | ?????????????????????? ??????????????????????????? | | ?????????????????????? ??????????????????????????? | | ######???????????????? ??????????????????????????? | | #???????????????? ??????????????????????????? | | #???????????????? ??????????????????????????? | | T ????????????????# #?????????????????????????? | | ????????????????# #?????????????????????????? | | ????????????????# #?????????????????????????? | | # #????????????????# #?????????????????????????? | | # ##########???????# #?????????????????????????? | | # # #???????# #???????######????????????? | | # # #???????# #????? #????????????? | | # + ######### #### #?? ??????? | | # # + + p #? ? ???? | | # # ######### # " " " " #? " ? | | # # #???#####+## # " " "??? # [ #? | | # # #???# + + " " " " ??#"""""""""## | | # # = #???# """ # # #?#" " | | # #???# # # " " " " #? " "" | | ##########???# """ h + " " " ?##" " | | #????????????# h ;=# " " " "??# " " | | #####????????????# ?!;h; ? ?# " " | | ###??????????????########@##??######?# " " | | ??????????????????# !%%!#?????????? " " | | " ???????????######## !*!#???????????" " | | " ???????????# # #?????????### " | | " ???????????#!! " # ###########"="!""" """ | | " ???????????#!! " + % !=%] | | #??????????#! " # ##### ###"]%*!""""""" | | #??????????# # #####+#####+###### "" | | #??????????# ?# ; = #????? | | #??????????######?# # """ """" #??????? | | ###?????????????#####+## # "T """" #??????? | | ????????????????# + + """ """" #??????? | | ????????????????# """" # # """" #??????? | | ????????????????# """" # # #??????? | | ????????????????# """" # + """" """" #??????? | | ????????????????# """" ###### """" """" #??????? | | ????????????????# #????# """" """" #??????? | | ??????????????????######????# """" """" #??????? | | ????????????????????????????# #??????? | | ????????????????????????????##########?####??????? | | ?????????????????????????????????????????????????? | | | | | | | | | +----------------------------------------------------+ Best States ------------- Heat Dissipation 97 Energy Generation 45 Energy Capacity 1050 Matter Stores 300 Matter Capacity 300 Sight Range 16 Robot Scan Range 15 Terrain Scan Range 16 Terrain Scan Density 10 Armor Coverage 675 Resistance: EM 15 Evasion (%) 55 Target Analysis 5 Armor Integrity Analysis 30 Recoil Reduction 3 Salvage Targeting 1 Item Schematics ----------------- Combat Drone Bay | -7/Data Miner | Free Lgt. Regenerative Plating | -7/Data Miner | Free Multireflex Exoskeleton | -7/Data Miner | Free Exp. Targeting Computer | -7/Data Miner | Free Force Rifle | -7/Data Miner | Free Field Propulsion Drive | -7/Data Miner | Free Point Defense System | -7/Data Miner | Free Hvy. Phase Cannon | -7/Data Miner | Free Robot Schematics ------------------ R-10 Processor | -7/Data Miner | Free Y-54 Guardian | -7/Data Miner | Free O-24 Administrator | -7/Data Miner | Free G-47 Trooper | -7/Data Miner | Free B-48 Gladiator | -7/Data Miner | Free B-60 Warrior | -7/Data Miner | Free Fabricated ------------ Wave Gun | x2 | -7/Factory | Preloaded Repaired ---------- Med. Armor Plating | 29% | -8/Materials Lgt. Treads | 11% | -8/Materials Alien Tech Used ----------------- None Achievements -------------- Collateral Damage Z1$+NX3F=JRE3_ZNQR Challenges ------------ None Game ------ Seed HardcellBottomlessBay Manual? 0 Play Time 02:10:32 Cumulative 170.8 hours Start 2025.06.15 @ 22:25:00 End 2025.06.16 @ 01:27:47 Sessions 1 Manual Loads 0 Difficulty Rogue Special Mode None Game No. 90 Rogue 90 Adventurer 0 Explorer 0 Win Type - Total 4 Types 3/0/1/0/0/0/0/0/0/0 Lore% 55 Gallery% 45 Achievement% 48 Wizard Run 0 Options --------- Layout 0 ASCII 0 Keyboard 1 Movement Vi Keybinds 0 Fullscreen 2 Font 24/Terminus Map View 76x50 Zoom Use 0% Tactical HUD 1 Map Filters NONE Filters NONE Steam 1 RUN: 8eb90c47-18f1-49d1-a89e-39a7344b9cc6